[Event "Asian Amateur Rapid 2024"]
[Site "Al Ain"]
[Date "2024.12.15"]
[Round "3.24"]
[White "Kalikhan, Abilmansur"]
[Black "Al Namas, Kanan"]
[Result "1/2-1/2"]
[ECO "A03"]
[WhiteElo "1731"]
[BlackElo "1813"]
[Annotator "NA RC"]
[PlyCount "81"]
[EventDate "2024.12.15"]
[EventType "swiss"]
[EventCountry "UAE"]
[SourceTitle "playchess.com"]
[Source "ChessBase"]
[SourceQuality "1"]
[TimeControl "900+10"]

1. f4 {[%emt 0:00:31]} d5 {[%emt 0:00:44]} 2. Nf3 {[%emt 0:00:02]} c5 {[%emt 0:00:01]} 3. e3 {[%emt 0:00:00]} Nc6 {[%emt 0:00:01]} 4. Bb5 {[%emt 0:00:02]} Bd7 {[%emt 0:00:04]} 5. Bxc6 {[%emt 0:00:01]} Bxc6 {[%emt 0:00:04]} 6. O-O {[%emt 0:00:05]} g6 {[%emt 0:00:35]} 7. d4 {[%emt 0:00:15]} Bg7 {[%emt 0:00:33]} 8. c3 {[%emt 0:00:55]} cxd4 {[%emt 0:00:11]} 9. exd4 {[%emt 0:00:01]} Nf6 {[%emt 0:00:08]} 10. Nbd2 {[%emt 0:00:03]} Ne4 {[%emt 0:00:09]} 11. Ne5 {[%emt 0:00:20]} Nxd2 {[%emt 0:00:35]} 12. Nxc6 {[%emt 0:00:44]} bxc6 {[%emt 0:00:10]} 13. Bxd2 {[%emt 0:00:02]} O-O {[%emt 0:00:05]} 14. f5 {[%emt 0:01:22]} e6 {[%emt 0:04:31]} 15. fxe6 {[%emt 0:00:33]} fxe6 {[%emt 0:00:02]} 16. Qg4 {[%emt 0:00:06]} Rf5 {[%emt 0:00:29]} 17. Rae1 {[%emt 0:00:20]} Qd7 {[%emt 0:00:36]} 18. h4 {[%emt 0:04:01]} e5 {[%emt 0:01:32]} 19. Rxf5 {[%emt 0:00:41]} gxf5 {[%emt 0:00:02]} 20. Qg5 {[%emt 0:00:46]} e4 {[%emt 0:00:54]} 21. h5 {[%emt 0:00:31]} h6 {[%emt 0:00:56]} 22. Qg6 {[%emt 0:00:03]} Rf8 {[%emt 0:00:48]} 23. Bxh6 {[%emt 0:00:19]} Rf6 {[%emt 0:00:06]} 24. Qxg7+ {[%emt 0:00:56]} Qxg7 {[%emt 0:00:03]} 25. Bxg7 {[%emt 0:00:02]} Kxg7 {[%emt 0:00:02]} 26. Kf2 {[%emt 0:00:10]} Kh6 {[%emt 0:00:13]} 27. g3 {[%emt 0:03:04]} Kg5 {[%emt 0:00:19]} 28. Ke3 {[%emt 0:00:20]} Rh6 {[%emt 0:00:07]} 29. Rh1 {[%emt 0:01:10]} Kg4 {[%emt 0:00:41]} 30. b3 {[%emt 0:00:17]} a6 {[%emt 0:00:56]} 31. c4 {[%emt 0:01:00]} Rxh5 {[%emt 0:00:23]} 32. Rxh5 {[%emt 0:00:13]} Kxh5 {[%emt 0:00:02]} 33. Kf4 {[%emt 0:00:09]} Kg6 {[%emt 0:00:03]} 34. a3 {[%emt 0:00:26]} Kf6 {[%emt 0:00:07]} 35. cxd5 {[%emt 0:01:03]} cxd5 {[%emt 0:00:02]} 36. b4 {[%emt 0:00:03]} Ke6 {[%emt 0:00:06]} 37. a4 {[%emt 0:00:04]} Kd6 {[%emt 0:00:06]} 38. Ke3 {[%emt 0:00:28]} Kc6 {[%emt 0:00:09]} 39. Kf4 {[%emt 0:00:08]} Kb6 {[%emt 0:00:14]} 40. Ke3 {[%emt 0:00:02]} Kc6 {[%emt 0:00:46]} 41. Kf4 {[%emt 0:00:02]} 1/2-1/2

[Event "Asian Amateur Rapid 2024"]
[Site "Al Ain"]
[Date "2024.12.15"]
[Round "3.25"]
[White "Eisa Mohmood, Alkhoori"]
[Black "Al Hosni, Khalfan"]
[Result "0-1"]
[ECO "B62"]
[WhiteElo "1853"]
[BlackElo "1749"]
[Annotator "NA RC"]
[PlyCount "60"]
[EventDate "2024.12.15"]
[EventType "swiss"]
[EventCountry "UAE"]
[SourceTitle "playchess.com"]
[Source "ChessBase"]
[SourceQuality "1"]
[TimeControl "900+10"]

1. e4 {[%emt 0:00:02]} c5 {[%emt 0:00:02]} 2. Nf3 {[%emt 0:00:01]} d6 {[%emt 0:00:02]} 3. d4 {[%emt 0:00:03]} cxd4 {[%emt 0:00:01]} 4. Nxd4 {[%emt 0:00:02]} Nf6 {[%emt 0:00:01]} 5. Nc3 {[%emt 0:00:02]} Nc6 {[%emt 0:00:01]} 6. Bg5 {[%emt 0:00:11]} e6 {[%emt 0:00:02]} 7. Qd3 {[%emt 0:00:49]} a6 {[%emt 0:00:06]} 8. Nxc6 {[%emt 0:00:14]} bxc6 {[%emt 0:00:02]} 9. O-O-O {[%emt 0:00:07]} Be7 {[%emt 0:00:05]} 10. Bxf6 {[%emt 0:00:39]} gxf6 {[%emt 0:00:03]} 11. f4 {[%emt 0:00:23]} a5 {[%emt 0:00:17]} 12. Be2 {[%emt 0:00:25]} Qb6 {[%emt 0:00:27]} 13. e5 {[%emt 0:03:30]} fxe5 {[%emt 0:00:03]} 14. fxe5 {[%emt 0:00:04]} d5 {[%emt 0:00:01]} 15. Bh5 {[%emt 0:00:26]} Ba6 {[%emt 0:03:46]} 16. Qf3 {[%emt 0:00:37]} Rf8 {[%emt 0:00:37]} 17. Rhf1 {[%emt 0:00:52]} Bxf1 {[%emt 0:00:17]} 18. Rxf1 {[%emt 0:00:02]} a4 {[%emt 0:00:10]} 19. Bxf7+ {[%emt 0:00:26]} Kd7 {[%emt 0:00:02]} 20. Bxe6+ {[%emt 0:03:25]} Kxe6 {[%emt 0:00:33]} 21. Qg4+ {[%emt 0:00:05]} Kxe5 {[%emt 0:00:07]} 22. Re1+ {[%emt 0:00:32]} Kf6 {[%emt 0:00:52]} 23. Qh4+ {[%emt 0:02:37]} Kg6 {[%emt 0:00:38]} 24. Qxe7 {[%emt 0:00:43]} Qf2 {[%emt 0:00:28]} 25. h4 {[%emt 0:01:29]} Qf4+ {[%emt 0:00:27]} 26. Kb1 {[%emt 0:00:02]} Rf7 {[%emt 0:01:23]} 27. h5+ {[%emt 0:00:48]} Kg7 {[%emt 0:00:31]} 28. h6+ {[%emt 0:00:16]} Kxh6 {[%emt 0:00:08]} 29. Re6+ {[%emt 0:00:33]} Kg7 {[%emt 0:00:20]} 30. Ne2 {[%emt 0:00:30]} Qf1+ {[%emt 0:00:08]} 0-1

[Event "Asian Amateur Rapid 2024"]
[Site "Al Ain"]
[Date "2024.12.15"]
[Round "3.26"]
[White "Sinno, Abdul Salam"]
[Black "Mosallam, Mohammad"]
[Result "0-1"]
[ECO "A80"]
[WhiteElo "1527"]
[BlackElo "1753"]
[Annotator "NA RC"]
[PlyCount "84"]
[EventDate "2024.12.15"]
[EventType "swiss"]
[EventCountry "UAE"]
[SourceTitle "playchess.com"]
[Source "ChessBase"]
[SourceQuality "1"]
[TimeControl "900+10"]

1. d4 {[%emt 0:00:07]} f5 {[%emt 0:00:10]} 2. Bf4 {[%emt 0:00:03]} Nf6 {[%emt 0:00:04]} 3. e3 {[%emt 0:00:02]} e6 {[%emt 0:00:01]} 4. h4 {[%emt 0:00:02]} Be7 {[%emt 0:01:19]} 5. h5 {[%emt 0:00:02]} Nd5 {[%emt 0:00:23]} 6. Be5 {[%emt 0:00:31]} Bf6 {[%emt 0:00:01]} 7. Bh2 {[%emt 0:00:24]} O-O {[%emt 0:00:16]} 8. c3 {[%emt 0:00:40]} b6 {[%emt 0:00:20]} 9. Nf3 {[%emt 0:00:23]} d6 {[%emt 0:00:13]} 10. Nbd2 {[%emt 0:00:24]} Bb7 {[%emt 0:00:50]} 11. a3 {[%emt 0:00:27]} Nd7 {[%emt 0:00:30]} 12. Be2 {[%emt 0:01:31]} Qe7 {[%emt 0:01:15]} 13. c4 {[%emt 0:00:10]} c6 {[%emt 0:03:48]} 14. cxd5 {[%emt 0:00:06]} cxd5 {[%emt 0:00:11]} 15. Bd3 {[%emt 0:01:36]} a6 {[%emt 0:00:50]} 16. Qb3 {[%emt 0:00:20]} b5 {[%emt 0:00:09]} 17. Qb4 {[%emt 0:00:13]} Qf7 {[%emt 0:03:43]} 18. Bxd6 {[%emt 0:00:07]} Rfd8 {[%emt 0:00:28]} 19. Bf4 {[%emt 0:01:20]} Rdc8 {[%emt 0:00:17]} 20. Nb3 {[%emt 0:00:25]} Be7 {[%emt 0:00:41]} 21. Qd2 {[%emt 0:00:13]} Bd8 {[%emt 0:00:30]} 22. Ne5 {[%emt 0:00:08]} Nxe5 {[%emt 0:00:02]} 23. Bxe5 {[%emt 0:00:02]} Bb6 {[%emt 0:00:15]} 24. Rh3 {[%emt 0:00:27]} a5 {[%emt 0:00:38]} 25. Qe2 {[%emt 0:00:25]} a4 {[%emt 0:00:16]} 26. Nd2 {[%emt 0:00:06]} Ba5 {[%emt 0:00:34]} 27. Rg3 {[%emt 0:01:07]} g6 {[%emt 0:00:02]} 28. hxg6 {[%emt 0:00:06]} hxg6 {[%emt 0:00:00]} 29. Qh5 {[%emt 0:00:20]} Kf8 {[%emt 0:00:29]} 30. Qxg6 {[%emt 0:00:37]} Qxg6 {[%emt 0:00:21]} 31. Rxg6 {[%emt 0:00:03]} Rc6 {[%emt 0:00:21]} 32. Bxb5 {[%emt 0:00:31]} Rc2 {[%emt 0:00:04]} 33. Rd1 {[%emt 0:00:49]} Rxb2 {[%emt 0:00:14]} 34. Rxe6 {[%emt 0:00:27]} Rxb5 {[%emt 0:00:13]} 35. Ke2 {[%emt 0:00:40]} Rb2 {[%emt 0:00:05]} 36. Rf6+ {[%emt 0:00:07]} Kg8 {[%emt 0:00:50]} 37. Rxf5 {[%emt 0:00:07]} Ba6+ {[%emt 0:00:09]} 38. Ke1 {[%emt 0:00:04]} Rc8 {[%emt 0:00:08]} 39. Bd6 {[%emt 0:00:22]} Bxd2+ {[%emt 0:00:08]} 40. Rxd2 {[%emt 0:00:22]} Rc1+ {[%emt 0:00:02]} 41. Rd1 {[%emt 0:00:11]} Re2+ {[%emt 0:00:01]} 42. Kf1 {[%emt 0:00:04]} Rxd1# {[%emt 0:00:00]} 0-1

[Event "Asian Amateur Rapid 2024"]
[Site "Al Ain"]
[Date "2024.12.15"]
[Round "3.27"]
[White "Al Mamari, Said Ahmed"]
[Black "Raj Aryan"]
[Result "0-1"]
[ECO "C01"]
[WhiteElo "1707"]
[BlackElo "1609"]
[Annotator "NA RC"]
[PlyCount "145"]
[EventDate "2024.12.15"]
[EventType "swiss"]
[EventCountry "UAE"]
[SourceTitle "playchess.com"]
[Source "ChessBase"]
[SourceQuality "1"]
[TimeControl "900+10"]

1. e4 {[%emt 0:00:01]} e6 {[%emt 0:00:01]} 2. d4 {[%emt 0:00:03]} d5 {[%emt 0:00:01]} 3. Bd3 {[%emt 0:00:02]} Nf6 {[%emt 0:00:02]} 4. e5 {[%emt 0:00:01]} Nfd7 {[%emt 0:00:01]} 5. f4 {[%emt 0:00:02]} c5 {[%emt 0:00:01]} 6. c3 {[%emt 0:00:01]} Nc6 {[%emt 0:00:01]} 7. Nf3 {[%emt 0:00:02]} f6 {[%emt 0:00:15]} 8. O-O {[%emt 0:00:38]} Qb6 {[%emt 0:00:08]} 9. Kh1 {[%emt 0:00:11]} Be7 {[%emt 0:00:29]} 10. a3 {[%emt 0:00:12]} O-O {[%emt 0:00:24]} 11. b4 {[%emt 0:00:17]} cxd4 {[%emt 0:00:26]} 12. cxd4 {[%emt 0:00:03]} Kh8 {[%emt 0:01:01]} 13. Bb2 {[%emt 0:00:02]} a5 {[%emt 0:02:07]} 14. b5 {[%emt 0:00:39]} Nd8 {[%emt 0:00:06]} 15. Ng5 {[%emt 0:00:32]} f5 {[%emt 0:04:30]} 16. Qh5 {[%emt 0:00:15]} Bxg5 {[%emt 0:00:21]} 17. fxg5 {[%emt 0:00:13]} g6 {[%emt 0:00:01]} 18. Qh4 {[%emt 0:00:15]} Nf7 {[%emt 0:00:10]} 19. Nc3 {[%emt 0:00:28]} Qd8 {[%emt 0:00:29]} 20. Bc1 {[%emt 0:00:05]} h6 {[%emt 0:00:59]} 21. Rf3 {[%emt 0:00:06]} Kg7 {[%emt 0:00:23]} 22. gxh6+ {[%emt 0:00:06]} Kh7 {[%emt 0:00:18]} 23. Qxd8 {[%emt 0:00:57]} Rxd8 {[%emt 0:00:03]} 24. Bd2 {[%emt 0:00:14]} b6 {[%emt 0:00:53]} 25. h4 {[%emt 0:00:04]} Ra7 {[%emt 0:00:38]} 26. Bg5 {[%emt 0:00:04]} Rg8 {[%emt 0:00:43]} 27. Na4 {[%emt 0:00:26]} Rc7 {[%emt 0:00:10]} 28. Rff1 {[%emt 0:00:12]} Bb7 {[%emt 0:00:04]} 29. Rac1 {[%emt 0:00:03]} Rgc8 {[%emt 0:00:01]} 30. Kg1 {[%emt 0:01:11]} Nxh6 {[%emt 0:01:14]} 31. Rxc7 {[%emt 0:01:14]} Rxc7 {[%emt 0:00:01]} 32. Rc1 {[%emt 0:00:02]} Rxc1+ {[%emt 0:00:38]} 33. Bxc1 {[%emt 0:00:02]} Nf7 {[%emt 0:00:20]} 34. Kf2 {[%emt 0:00:13]} Kg7 {[%emt 0:00:18]} 35. Nc3 {[%emt 0:00:12]} Kf8 {[%emt 0:00:21]} 36. a4 {[%emt 0:00:09]} Nd8 {[%emt 0:02:07]} 37. g4 {[%emt 0:00:05]} Nf7 {[%emt 0:00:07]} 38. h5 {[%emt 0:00:05]} Nfxe5 {[%emt 0:01:07]} 39. dxe5 {[%emt 0:00:16]} Nxe5 {[%emt 0:00:02]} 40. Be2 {[%emt 0:00:06]} d4 {[%emt 0:00:02]} 41. Nd1 {[%emt 0:00:25]} d3 {[%emt 0:00:02]} 42. Bf1 {[%emt 0:01:17]} Nxg4+ {[%emt 0:00:03]} 43. Kg3 {[%emt 0:00:02]} gxh5 {[%emt 0:00:13]} 44. Bxd3 {[%emt 0:00:01]} Ne5 {[%emt 0:00:08]} 45. Be2 {[%emt 0:00:12]} Be4 {[%emt 0:00:15]} 46. Nc3 {[%emt 0:00:42]} Bc2 {[%emt 0:00:31]} 47. Bxh5 {[%emt 0:00:11]} Ke7 {[%emt 0:00:09]} 48. Ba3+ {[%emt 0:00:09]} Kd7 {[%emt 0:00:02]} 49. Kf4 {[%emt 0:00:04]} Nd3+ {[%emt 0:00:10]} 50. Ke3 {[%emt 0:00:17]} Ne5 {[%emt 0:00:04]} 51. Kd2 {[%emt 0:00:28]} Bxa4 {[%emt 0:00:02]} 52. Nxa4 {[%emt 0:00:06]} Nc4+ {[%emt 0:00:01]} 53. Kc3 {[%emt 0:00:08]} Nxa3 {[%emt 0:00:03]} 54. Nxb6+ {[%emt 0:00:17]} Kc7 {[%emt 0:00:09]} 55. Nc4 {[%emt 0:00:10]} Nxb5+ {[%emt 0:00:02]} 56. Kd3 {[%emt 0:00:02]} a4 {[%emt 0:00:05]} 57. Bd1 {[%emt 0:00:03]} a3 {[%emt 0:00:03]} 58. Bb3 {[%emt 0:00:09]} Kc6 {[%emt 0:00:42]} 59. Ne5+ {[%emt 0:00:24]} Kd6 {[%emt 0:00:11]} 60. Nc4+ {[%emt 0:00:16]} Kc5 {[%emt 0:00:05]} 61. Na5 {[%emt 0:00:14]} e5 {[%emt 0:00:11]} 62. Ba2 {[%emt 0:00:09]} e4+ {[%emt 0:00:16]} 63. Ke3 {[%emt 0:00:03]} Nc3 {[%emt 0:00:11]} 64. Be6 {[%emt 0:00:06]} a2 {[%emt 0:00:18]} 65. Bxf5 {[%emt 0:00:21]} Kb4 {[%emt 0:00:09]} 66. Nc6+ {[%emt 0:00:05]} Ka3 {[%emt 0:00:44]} 67. Nd4 {[%emt 0:00:13]} Kb2 {[%emt 0:00:02]} 68. Nb3 {[%emt 0:01:25]} Kxb3 {[%emt 0:00:22]} 69. Be6+ {[%emt 0:00:03]} Kb2 {[%emt 0:00:02]} 70. Bxa2 {[%emt 0:00:04]} Kxa2 {[%emt 0:00:01]} 71. Kd2 {[%emt 0:00:03]} Kb3 {[%emt 0:00:02]} 72. Ke3 {[%emt 0:00:01]} Kc2 {[%emt 0:00:02]} 73. Kd4 {[%emt 0:00:00]} 0-1

[Event "Asian Amateur Rapid 2024"]
[Site "Al Ain"]
[Date "2024.12.15"]
[Round "3.28"]
[White "Al Sabti, Wadhah"]
[Black "nawaf saleh basabaien"]
[Result "1-0"]
[ECO "A41"]
[WhiteElo "1470"]
[BlackElo "1729"]
[Annotator "NA RC"]
[PlyCount "65"]
[EventDate "2024.12.15"]
[EventType "swiss"]
[EventCountry "UAE"]
[SourceTitle "playchess.com"]
[Source "ChessBase"]
[SourceQuality "1"]
[TimeControl "900+10"]

1. d4 {[%emt 0:00:13]} d6 {[%emt 0:00:03]} 2. Nc3 {[%emt 0:00:18]} Nf6 {[%emt 0:00:02]} 3. Bf4 {[%emt 0:00:02]} Nbd7 {[%emt 0:00:03]} 4. e3 {[%emt 0:00:04]} c6 {[%emt 0:00:02]} 5. Bd3 {[%emt 0:00:07]} Qa5 {[%emt 0:00:05]} 6. Nge2 {[%emt 0:00:34]} e5 {[%emt 0:00:42]} 7. dxe5 {[%emt 0:00:05]} dxe5 {[%emt 0:00:03]} 8. Bg3 {[%emt 0:00:11]} b5 {[%emt 0:01:49]} 9. O-O {[%emt 0:00:59]} Qb4 {[%emt 0:02:06]} 10. b3 {[%emt 0:01:16]} e4 {[%emt 0:00:11]} 11. a3 {[%emt 0:00:07]} Qe7 {[%emt 0:00:04]} 12. Bxb5 {[%emt 0:01:09]} cxb5 {[%emt 0:00:03]} 13. Nxb5 {[%emt 0:00:01]} Ne5 {[%emt 0:01:18]} 14. Qd4 {[%emt 0:02:40]} a6 {[%emt 0:01:43]} 15. Bxe5 {[%emt 0:00:30]} axb5 {[%emt 0:00:05]} 16. Bxf6 {[%emt 0:00:04]} gxf6 {[%emt 0:00:30]} 17. Nf4 {[%emt 0:00:35]} Bb7 {[%emt 0:01:05]} 18. Nh5 {[%emt 0:00:28]} Ra6 {[%emt 0:01:02]} 19. Rad1 {[%emt 0:01:28]} Rg8 {[%emt 0:01:58]} 20. a4 {[%emt 0:01:17]} bxa4 {[%emt 0:00:41]} 21. b4 {[%emt 0:00:24]} Rg5 {[%emt 0:00:15]} 22. Nf4 {[%emt 0:02:06]} Bg7 {[%emt 0:00:25]} 23. h4 {[%emt 0:00:40]} Rb5 {[%emt 0:00:47]} 24. c3 {[%emt 0:00:38]} a3 {[%emt 0:00:11]} 25. Qc4 {[%emt 0:00:15]} Re5 {[%emt 0:01:14]} 26. Nd5 {[%emt 0:00:51]} Rxd5 {[%emt 0:00:05]} 27. Rxd5 {[%emt 0:00:03]} Bxd5 {[%emt 0:00:03]} 28. Qxa6 {[%emt 0:00:02]} a2 {[%emt 0:00:15]} 29. c4 {[%emt 0:00:15]} Qe6 {[%emt 0:01:54]} 30. Qxa2 {[%emt 0:01:04]} Bxc4 {[%emt 0:00:01]} 31. Qa8+ {[%emt 0:00:01]} Ke7 {[%emt 0:00:16]} 32. Rd1 {[%emt 0:00:03]} f5 {[%emt 0:00:27]} 33. Qd8# {[%emt 0:00:02]} 1-0

[Event "Asian Amateur Rapid 2024"]
[Site "Al Ain"]
[Date "2024.12.15"]
[Round "3.29"]
[White "Mohamed Yousuf Al-Ali"]
[Black "Ahmed Younes Alkhemeiri"]
[Result "0-1"]
[ECO "E43"]
[WhiteElo "1569"]
[BlackElo "1584"]
[Annotator "NA RC"]
[PlyCount "82"]
[EventDate "2024.12.15"]
[EventType "swiss"]
[EventCountry "UAE"]
[SourceTitle "playchess.com"]
[Source "ChessBase"]
[SourceQuality "1"]
[TimeControl "900+10"]

1. d4 {[%emt 0:00:01]} Nf6 {[%emt 0:15:20]} 2. Nf3 {[%emt 0:00:06]} e6 {[%emt 0:00:00]} 3. e3 {[%emt 0:00:02]} b6 {[%emt 0:00:00]} 4. c4 {[%emt 0:00:01]} Bb7 {[%emt 0:00:00]} 5. Nc3 {[%emt 0:00:02]} Bb4 {[%emt 0:00:00]} 6. Bd3 {[%emt 0:00:15]} O-O {[%emt 0:00:00]} 7. O-O {[%emt 0:00:04]} Bxc3 {[%emt 0:00:00]} 8. bxc3 {[%emt 0:00:01]} d6 {[%emt 0:00:00]} 9. Qc2 {[%emt 0:00:02]} Nbd7 {[%emt 0:00:00]} 10. a4 {[%emt 0:00:02]} a5 {[%emt 0:00:00]} 11. Ba3 {[%emt 0:00:10]} Re8 {[%emt 0:00:00]} 12. Nd2 {[%emt 0:00:16]} h6 {[%emt 0:00:00]} 13. f4 {[%emt 0:00:37]} e5 {[%emt 0:00:00]} 14. fxe5 {[%emt 0:00:33]} dxe5 {[%emt 0:00:00]} 15. d5 {[%emt 0:00:03]} Nc5 {[%emt 0:00:00]} 16. Bxc5 {[%emt 0:00:10]} bxc5 {[%emt 0:00:00]} 17. Rab1 {[%emt 0:00:01]} Ba6 {[%emt 0:00:00]} 18. h3 {[%emt 0:01:15]} Qe7 {[%emt 0:00:00]} 19. Be4 {[%emt 0:01:03]} Nd7 {[%emt 0:00:00]} 20. d6 {[%emt 0:00:30]} Qxd6 {[%emt 0:00:00]} 21. Bxa8 {[%emt 0:00:08]} Rxa8 {[%emt 0:00:00]} 22. Qe4 {[%emt 0:00:36]} Re8 {[%emt 0:00:00]} 23. Rbd1 {[%emt 0:02:14]} Nf6 {[%emt 0:00:00]} 24. Qf3 {[%emt 0:00:29]} Qd3 {[%emt 0:00:00]} 25. Nb3 {[%emt 0:02:01]} Qxc4 {[%emt 0:00:00]} 26. Nxa5 {[%emt 0:03:08]} Qxc3 {[%emt 0:00:00]} 27. Nc6 {[%emt 0:02:57]} Bxf1 {[%emt 0:00:00]} 28. Rxf1 {[%emt 0:00:09]} Re6 {[%emt 0:00:00]} 29. Nd8 {[%emt 0:00:32]} Rd6 {[%emt 0:00:00]} 30. Qa8 {[%emt 0:02:29]} Qxe3+ {[%emt 0:00:00]} 31. Kh2 {[%emt 0:00:10]} Qe4 {[%emt 0:00:00]} 32. Nc6+ {[%emt 0:00:12]} Kh7 {[%emt 0:00:00]} 33. Qf8 {[%emt 0:00:06]} Qxc6 {[%emt 0:00:00]} 34. Qxf7 {[%emt 0:00:01]} Rd7 {[%emt 0:00:00]} 35. Qc4 {[%emt 0:00:06]} Qd5 {[%emt 0:00:00]} 36. Qc2+ {[%emt 0:00:10]} e4 {[%emt 0:00:00]} 37. a5 {[%emt 0:00:01]} Qd3 {[%emt 0:06:00]} 38. Qf2 {[%emt 0:00:29]} e3 {[%emt 0:00:00]} 39. Qa2 {[%emt 0:00:28]} Qxf1 {[%emt 0:00:00]} 40. Qc2+ {[%emt 0:00:10]} Kg8 {[%emt 0:00:00]} 41. Qxc5 {[%emt 0:00:00]} Qf4+ {[%emt 0:00:00]} 0-1

[Event "Asian Amateur Rapid 2024"]
[Site "Al Ain"]
[Date "2024.12.15"]
[Round "3.30"]
[White "Saket Atul Kumar"]
[Black "Khabdes, Bakytzhan"]
[Result "1-0"]
[ECO "B15"]
[WhiteElo "1633"]
[BlackElo "1437"]
[Annotator "NA RC"]
[PlyCount "101"]
[EventDate "2024.12.15"]
[EventType "swiss"]
[EventCountry "UAE"]
[SourceTitle "playchess.com"]
[Source "ChessBase"]
[SourceQuality "1"]
[TimeControl "900+10"]

1. e4 {[%emt 0:00:10]} c6 {[%emt 0:01:05]} 2. d4 {[%emt 0:00:00]} d5 {[%emt 0:00:01]} 3. Nc3 {[%emt 0:00:00]} dxe4 {[%emt 0:00:04]} 4. Nxe4 {[%emt 0:00:00]} Nf6 {[%emt 0:00:02]} 5. Nxf6+ {[%emt 0:00:00]} exf6 {[%emt 0:00:01]} 6. Bd3 {[%emt 0:00:00]} Bd6 {[%emt 0:00:04]} 7. Qh5 {[%emt 0:00:00]} Qe7+ {[%emt 0:00:07]} 8. Ne2 {[%emt 0:00:11]} Be6 {[%emt 0:00:15]} 9. O-O {[%emt 0:00:08]} Nd7 {[%emt 0:15:01]} 10. c4 {[%emt 0:00:04]} Nf8 {[%emt 0:00:00]} 11. d5 {[%emt 0:00:21]} g6 {[%emt 0:00:00]} 12. Qf3 {[%emt 0:00:07]} Bd7 {[%emt 0:00:00]} 13. Nd4 {[%emt 0:00:29]} c5 {[%emt 0:00:00]} 14. Nc2 {[%emt 0:00:16]} O-O-O {[%emt 0:00:00]} 15. Be3 {[%emt 0:00:10]} h5 {[%emt 0:00:00]} 16. a3 {[%emt 0:00:05]} Bg4 {[%emt 0:00:00]} 17. Qe4 {[%emt 0:00:02]} Qc7 {[%emt 0:00:00]} 18. Rfd1 {[%emt 0:01:09]} Bxh2+ {[%emt 0:00:00]} 19. Kf1 {[%emt 0:00:07]} Bd6 {[%emt 0:00:00]} 20. b4 {[%emt 0:00:15]} Nd7 {[%emt 0:00:00]} 21. bxc5 {[%emt 0:00:30]} Nxc5 {[%emt 0:00:00]} 22. Qd4 {[%emt 0:00:11]} Nb3 {[%emt 0:00:00]} 23. Qxa7 {[%emt 0:00:17]} Nxa1 {[%emt 0:00:00]} 24. Rxa1 {[%emt 0:00:04]} h4 {[%emt 0:00:00]} 25. c5 {[%emt 0:00:06]} Be5 {[%emt 0:00:00]} 26. Rb1 {[%emt 0:00:08]} Rxd5 {[%emt 0:00:00]} 27. Rxb7 {[%emt 0:00:05]} Qxb7 {[%emt 0:00:00]} 28. Ba6 {[%emt 0:00:02]} Rd1+ {[%emt 0:00:00]} 29. Ne1 {[%emt 0:00:01]} Qxa6+ {[%emt 0:00:00]} 30. Qxa6+ {[%emt 0:00:05]} Kc7 {[%emt 0:00:00]} 31. Qa7+ {[%emt 0:00:21]} Kc6 {[%emt 0:00:00]} 32. f3 {[%emt 0:00:09]} Be6 {[%emt 0:00:00]} 33. Qa4+ {[%emt 0:00:02]} Kc7 {[%emt 0:00:00]} 34. Qxd1 {[%emt 0:00:09]} h3 {[%emt 0:00:00]} 35. gxh3 {[%emt 0:00:11]} Bxh3+ {[%emt 0:00:00]} 36. Ke2 {[%emt 0:00:04]} Be6 {[%emt 0:00:00]} 37. Qa4 {[%emt 0:00:06]} Rh2+ {[%emt 0:00:00]} 38. Bf2 {[%emt 0:00:16]} g5 {[%emt 0:00:00]} 39. Qa7+ {[%emt 0:00:16]} Kc8 {[%emt 0:00:00]} 40. c6 {[%emt 0:00:14]} Bc7 {[%emt 0:00:00]} 41. Qa8+ {[%emt 0:00:10]} Bb8 {[%emt 0:00:00]} 42. Qb7+ {[%emt 0:00:04]} Kd8 {[%emt 0:00:00]} 43. Qxb8+ {[%emt 0:00:04]} Ke7 {[%emt 0:00:00]} 44. Qxh2 {[%emt 0:00:09]} f5 {[%emt 0:00:00]} 45. Qe5 {[%emt 0:00:05]} f6 {[%emt 0:00:00]} 46. Bc5+ {[%emt 0:00:03]} Kf7 {[%emt 0:00:04]} 47. Qc7+ {[%emt 0:00:03]} Kg6 {[%emt 0:00:04]} 48. Bd4 {[%emt 0:00:02]} f4 {[%emt 0:00:16]} 49. Qe7 {[%emt 0:00:06]} Bc4+ {[%emt 0:00:08]} 50. Kf2 {[%emt 0:00:02]} Kh5 {[%emt 0:00:08]} 51. Qh7# {[%emt 0:00:07]} 1-0

[Event "Asian Amateur Rapid 2024"]
[Site "Al Ain"]
[Date "2024.12.15"]
[Round "3.32"]
[White "Mohammed Saeed Alshamsi"]
[Black "Manuwaruna, Sethun Neththaru"]
[Result "0-1"]
[ECO "B07"]
[WhiteElo "1535"]
[BlackElo "1933"]
[Annotator "RC"]
[PlyCount "43"]
[EventDate "2024.12.15"]
[EventType "swiss"]
[EventCountry "UAE"]
[SourceTitle "playchess.com"]
[Source "ChessBase"]
[SourceQuality "1"]
[TimeControl "900+10"]

1. e4 {[%emt 0:00:09]} d6 {[%emt 0:00:10]} 2. d4 {[%emt 0:00:04]} Nf6 {[%emt 0:00:01]} 3. Nc3 {[%emt 0:00:01]} Nbd7 {[%emt 0:00:01]} 4. f4 {[%emt 0:00:04]} e5 {[%emt 0:00:01]} 5. fxe5 {[%emt 0:00:22]} dxe5 {[%emt 0:00:02]} 6. dxe5 {[%emt 0:00:21]} Nxe5 {[%emt 0:00:02]} 7. Qxd8+ {[%emt 0:00:03]} Kxd8 {[%emt 0:00:02]} 8. Nf3 {[%emt 0:00:10]} Bd6 {[%emt 0:00:11]} 9. Bd2 {[%emt 0:00:35]} c6 {[%emt 0:00:47]} 10. h3 {[%emt 0:00:08]} Nxf3+ {[%emt 0:01:00]} 11. gxf3 {[%emt 0:00:03]} Bg3+ {[%emt 0:00:05]} 12. Ke2 {[%emt 0:00:10]} Nh5 {[%emt 0:00:59]} 13. Rd1 {[%emt 0:00:15]} Ke7 {[%emt 0:00:50]} 14. Rg1 {[%emt 0:00:16]} Be6 {[%emt 0:00:25]} 15. Be1 {[%emt 0:01:05]} Bh2 {[%emt 0:01:35]} 16. Rh1 {[%emt 0:00:18]} Be5 {[%emt 0:00:48]} 17. Kd2 {[%emt 0:01:00]} Bf4+ {[%emt 0:00:24]} 18. Ke2 {[%emt 0:00:12]} b5 {[%emt 0:00:20]} 19. b3 {[%emt 0:01:22]} Rad8 {[%emt 0:00:32]} 20. h4 {[%emt 0:00:56]} Be5 {[%emt 0:00:33]} 21. Nb1 {[%emt 0:00:07]} Nf4+ {[%emt 0:00:08]} 22. Ke3 {[%emt 0:00:00]} 0-1